Cogmind - Beta 10.2 @@@ ROGUE MODE // 2021.10.19 @ 06:21:01 Player: ktur Result: Destroyed 0B10! Performance ------------- Evolutions (9) 4500 Regions Visited (33) 6600 Robots Destroyed (119) 595 Value Destroyed (3920) 3920 Prototype IDs (243) 4860 Alien Tech Used (1) 200 Bonus (28314) 28314 TOTAL SCORE: 48989 Bonus ------- Triggered High Security 500 High Alert Combat Kills 376 Follower Combat Kills 1938 Network Hubs Disabled 800 Aligned with FarCom 300 Met Data Miner 300 Used Data Conduit 3000 Met Zhirov 300 Met Warlord at Base 500 MAIN.C Attacked Warlord 500 Built Enhanced Grunts 300 Met R17 at Cetus 500 Met Warlord at Research 2000 Hacked God Mode 5000 Met Sigix 2000 Escaped with Sigix 5000 Met Warlord at Command 2000 Win 3000 Cogmind --------- Core Integrity 651/1600 Matter 103/300 Energy 98/100 System Corruption 5% Temperature Cool (3) Movement Core (50) Location Tau Ceti IV Orbit Parts ------- > --- POWER (2) -------- (None) > --- PROPULSION (9) --- (None) > --- UTILITY (12) ----- Spectral Analyzer Advanced Hacking Suite > --- WEAPON (2) ------- (None) > --- INVENTORY (4) ---- Transdimensional Reconstructor Sigix Containment Pod Peak State ------------ > --- POWER ------------ Vortex Chain Reactor > --- PROPULSION ------- Cooled Nuclear Pulse Thruster Cooled Nuclear Pulse Thruster Cooled Nuclear Pulse Thruster Electron Diverter Electron Diverter Cooled Impulse Thruster Cooled Impulse Thruster Cooled Impulse Thruster Cooled Q-thruster > --- UTILITY ---------- Experimental Power Amplifier Coolant Network Medium Storage Unit Large Storage Unit Spectral Analyzer Reaction Control System Makeshift Armor Plating Advanced Hacking Suite Deep Network Scanner > --- WEAPON ----------- Longsword +1 > --- INVENTORY -------- Light Quantum Reactor Advanced Cryofiber Web Improved Matter Compressor Improved Stasis Canceller Cloak of Protection Dimensional Node Initializer Transdimensional Reconstructor Transdimensional Reconstructor Subatomic Replicator Cooled Nova Cannon Mini Smartbomb Launcher Advanced Datajack Sigix Containment Pod [Rating: 183] Favorites ----------- Power Ion Engine Engine Ion Engine Power Core Micro Nuclear Core Reactor Light Quantum Reactor Propulsion Cooled VTOL Module Treads Light Treads Leg Aluminum Leg Hover Unit Combat Linear Gravjet Flight Unit Cooled VTOL Module Utility Large Storage Unit Device Coolant Injector Storage Large Storage Unit Processor Enhanced Optical Array Hackware Hacking Suite Protection Makeshift Armor Plating Weapon Assault Rifle Energy Gun Heavy EM Pulse Gun Energy Cannon Cooled Nova Cannon Ballistic Gun Assault Rifle Launcher Mini Smartbomb Launcher Special Weapon Remote Datajack Slashing Weapon Longsword +1 Special Melee Weapon Advanced Datajack Build | -11 -10 -10 -10 -9 -8 -7 -7 -7 -7 -6 -6 -6 -6 -6 -6 -5 -5 -5 -5 -5 -5 -4 -4 -4 -4 -4 -3 -3 -3 -2 -2 -1 -1 ------- Run | Scr Mat Min Exi Min Mat Fac Low Low Dat Pro Fac Ext Cet Arc Hub Fac Was Fac Upp Upp War Pro Fac Upp Upp Zhi Pro Res Qua Res Tes Acc Com Slots Evolved 18 | . . . . . 4 2 . . . . 2 . . . . 2 . . . . . . 2 . . . . 2 . 2 . 2 . Power 1 | . . . . . . 1 . . . . . . . . . . . . . . . . . . . . . . . . . . . Propulsion 7 | . . . . . 1 1 . . . . 1 . . . . . . . . . . . 2 . . . . 1 . 1 . . . Utility 10 | . . . . . 3 . . . . . 1 . . . . 2 . . . . . . . . . . . 1 . 1 . 2 . Weapon . | . . . . . . . . . . . . . . . . . . . . . . . . . . . . . . . . . . Parts Attached 194 | 7 9 5 1 1 41 23 . . 1 2 3 9 2 2 8 7 . 10 4 1 8 1 5 . . 6 1 6 3 6 9 1 12 Power 25 | 1 . . . 1 2 4 . . . 1 1 . 1 1 1 2 . 3 . . 2 . 1 . . . . . . 1 . . 3 Engine 8 | 1 . . . 1 1 . . . . . 1 . . . 1 1 . 2 . . . . . . . . . . . . . . . Core 13 | . . . . . 1 4 . . . 1 . . 1 1 . 1 . 1 . . 1 . . . . . . . . . . . 2 Reactor 4 | . . . . . . . . . . . . . . . . . . . . . 1 . 1 . . . . . . 1 . . 1 Propulsion 65 | 2 2 2 . . 16 11 . . . 1 1 4 . . 3 3 . 1 1 . 2 . 2 . . 3 . 2 1 1 5 . 2 Treads 17 | 2 2 1 . . 12 . . . . . . . . . . . . . . . . . . . . . . . . . . . . Leg 2 | . . 1 . . 1 . . . . . . . . . . . . . . . . . . . . . . . . . . . . Wheel . | . . . . . . . . . . . . . . . . . . . . . . . . . . . . . . . . . . Hover 4 | . . . . . 1 . . . . . . . . . 1 . . . . . . . . . . . . . . . . . 2 Flight 42 | . . . . . 2 11 . . . 1 1 4 . . 2 3 . 1 1 . 2 . 2 . . 3 . 2 1 1 5 . . Utility 54 | 2 2 . . . 6 5 . . 1 . 1 5 1 1 2 1 . 2 3 1 3 1 2 . . 2 1 4 2 2 2 . 2 Device 24 | . . . . . . . . . . . . 4 1 . 2 . . 1 2 1 1 . 1 . . 1 . 4 1 2 2 . 1 Storage 11 | 2 2 . . . 3 1 . . . . . . . . . . . . . . . . 1 . . 1 . . 1 . . . . Processor 3 | . . . . . 1 . . . 1 . . . . . . . . . . . 1 . . . . . . . . . . . . Hackware 10 | . . . . . . 4 . . . . 1 . . 1 . 1 . . . . . 1 . . . . 1 . . . . . 1 Protection 6 | . . . . . 2 . . . . . . 1 . . . . . 1 1 . 1 . . . . . . . . . . . . Artifact . | . . . . . . . . . . . . . . . . . . . . . . . . . . . . . . . . . . Weapon 50 | 2 5 3 1 . 17 3 . . . . . . . . 2 1 . 4 . . 1 . . . . 1 . . . 2 2 1 5 Energy Gun 5 | . . . . . 5 . . . . . . . . . . . . . . . . . . . . . . . . . . . . Energy Cannon 2 | . . . . . . . . . . . . . . . . . . . . . . . . . . . . . . . 1 . 1 Ballistic Gun 21 | 2 4 2 1 . 12 . . . . . . . . . . . . . . . . . . . . . . . . . . . . Ballistic Cannon . | . . . . . . . . . . . . . . . . . . . . . . . . . . . . . . . . . . Launcher 8 | . 1 1 . . . . . . . . . . . . 1 . . 1 . . 1 . . . . . . . . . . 1 2 Special Weapon 1 | . . . . . . 1 . . . . . . . . . . . . . . . . . . . . . . . . . . . Impact Weapon . | . . . . . . . . . . . . . . . . . . . . . . . . . . . . . . . . . . Slashing Weapon 11 | . . . . . . 2 . . . . . . . . 1 1 . 3 . . . . . . . 1 . . . 1 1 . 1 Piercing Weapon . | . . . . . . . . . . . . . . . . . . . . . . . . . . . . . . . . . . Special Melee Weapon 2 | . . . . . . . . . . . . . . . . . . . . . . . . . . . . . . 1 . . 1 Unidentified Prototypes 8 | . . . . . 5 . . . . . 1 . . . . . . . . . . . . . . 1 . . . . 1 . . Parts Lost 47 | . 1 2 . . 1 . . . 1 3 . . . . 9 2 . . . . . . . . . . 1 . . . . . 27 Power 8 | . . . . . 1 . . . 1 . . . . . 2 1 . . . . . . . . . . . . . . . . 3 Propulsion 20 | . 1 2 . . . . . . . 1 . . . . 4 1 . . . . . . . . . . 1 . . . . . 10 Utility 12 | . . . . . . . . . . 2 . . . . 2 . . . . . . . . . . . . . . . . . 8 Weapon 7 | . . . . . . . . . . . . . . . 1 . . . . . . . . . . . . . . . . . 6 Highest Loss Streak 13 | . 1 2 . . 1 . . . 1 3 . . . . 9 1 . . . . . . . . . . 1 . . . . . 13 Average Slot Usage (%) 91 | . 99 91 100 100 97 96 100 100 100 94 82 86 95 100 85 63 52 74 80 88 94 100 100 100 100 97 100 100 99 93 86 76 66 Engine 6 | . 14 14 14 14 5 . . . . . 1 6 3 . 2 10 . 4 5 5 3 . . . . . . . . . . . . Core 3 | . . . . . 3 14 15 15 15 15 11 6 8 13 9 . 5 4 5 5 5 5 3 . . . . . . . . . . Treads 10 | . 27 17 14 14 25 1 . . . . . . . . . . . . . . . . . . . . . . . . . . . Leg 2 | . . 2 14 14 1 . . . . . . . . . . . . . . . . . . . . . . . . . . . . Flight 15 | . . . . . . 27 30 30 30 30 28 33 33 33 29 17 17 22 23 23 25 29 36 36 36 36 36 38 38 38 37 32 27 Device 4 | . . . . . . . . . . . . . 8 13 9 5 5 10 13 17 17 17 15 15 15 12 10 14 13 16 14 12 8 Storage 16 | . 28 28 28 28 28 10 7 7 7 7 6 6 6 6 6 5 5 5 5 5 5 5 5 5 5 8 10 9 9 8 8 8 6 Processor 4 | . . . . . 8 . . . 4 7 6 6 6 6 6 5 5 5 5 5 5 5 5 5 5 5 5 4 4 4 4 4 4 Hackware 6 | . . . . . . 25 30 30 25 17 13 13 13 13 10 10 11 11 11 11 11 11 10 10 10 10 10 9 9 8 8 8 7 Protection 1 | . . . . . 6 . . . . . . . . . . . . . 1 5 5 5 5 5 5 5 5 4 4 4 4 4 1 Ballistic Gun 10 | . 27 19 28 28 17 . . . . . . . . . . . . . . . . . . . . . . . . . . . . Special Weapon 1 | . . . . . . 6 7 7 7 7 6 6 6 6 3 . . . . . . . . . . . . . . . . . . Slashing Weapon 2 | . . . . . . 6 7 7 7 7 6 6 6 6 4 4 . 4 5 5 5 5 5 5 5 3 5 4 4 3 4 4 4 Naked Turns . | . . . . . . . . . . . . . . . . . . . . . . . . . . . . . . . . . . Heaviest Build 95 | 17 41 41 41 41 95 32 24 24 24 25 29 30 30 30 36 18 15 35 40 35 45 45 52 52 52 59 59 64 70 77 77 76 78 Greatest Support 117 | 40 40 40 20 20 67 28 26 26 26 26 31 30 30 30 34 24 15 35 41 45 51 47 65 63 52 69 64 74 88 83 102 105 117 Greatest Overweight (x) 13 | 2 1 13 2 2 2 1 . . . . . . . . 1 1 . 1 . . 1 . . . . . 1 . . . . . . Average Overweight (x) . | . . 1 1 2 . . . . . . . . . . . . . . . . . . . . . . . . . . . . . Largest Inventory Capacity 30 | 8 16 16 16 16 30 30 8 8 8 8 8 8 8 8 8 8 8 8 8 8 8 8 8 8 8 12 12 12 14 14 14 14 14 Average Capacity 13 | 6 14 16 16 16 23 10 8 8 8 8 8 8 8 8 8 8 8 8 8 8 8 8 8 8 8 10 12 12 13 14 14 14 12 Most Carried 30 | 6 16 16 16 16 30 29 8 8 8 8 8 8 8 8 8 8 8 8 8 8 8 8 8 8 8 12 12 12 14 14 14 14 14 Average Carried 13 | 3 14 15 15 15 22 10 8 8 7 7 7 7 7 7 7 5 7 7 8 8 7 8 7 8 8 10 11 10 13 13 14 13 12 Final Capacity 30 | 8 16 16 16 16 30 8 8 8 8 8 8 8 8 8 8 8 8 8 8 8 8 8 8 8 8 12 12 12 14 14 14 14 4 Final Carried 30 | 6 15 15 16 16 30 8 8 8 8 8 8 8 7 8 5 5 8 8 8 8 8 8 8 8 8 12 12 12 14 14 14 14 3 Class Distribution -------------------- 45% | Hacker-Sprinter 30% | Mutant 13% | Hauler-Mutant 3% | Scavenger-Mutant 3% | Commander-Sprinter Dominant Class ---------------- Mutant | -10/Materials Mutant | -10/Mines Mutant | -10/Exiles Mutant | -9/Mines Hauler-Mutant | -8/Materials Hacker-Sprinter | -7/Factory Hacker-Sprinter | -7/Lower Caves Hacker-Sprinter | -7/Lower Caves Hacker-Sprinter | -7/Data Miner Hacker-Sprinter | -6/Proximity Caves Hacker-Sprinter | -6/Factory Hacker-Sprinter | -6/Extension Hacker-Sprinter | -6/Cetus Hacker-Sprinter | -6/Archives Hacker-Sprinter | -6/Hub_04(d) Hacker-Mutant | -5/Factory Hacker-Sprinter | -5/Waste Hacker-Sprinter | -5/Factory Hacker-Sprinter | -5/Upper Caves Hacker-Sprinter | -5/Upper Caves Hacker-Sprinter | -5/Warlord Hacker-Sprinter | -4/Proximity Caves Hacker-Sprinter | -4/Factory Hacker-Sprinter | -4/Upper Caves Hacker-Sprinter | -4/Upper Caves Hacker-Sprinter | -4/Zhirov Hacker-Sprinter | -3/Proximity Caves Hacker-Sprinter | -3/Research Hacker-Sprinter | -3/Quarantine Hacker-Sprinter | -2/Research Hacker-Sprinter | -2/Testing Hacker-Sprinter | -1/Access Hacker-Sprinter | -1/Command Resources | -11 -10 -10 -10 -9 -8 -7 -7 -7 -7 -6 -6 -6 -6 -6 -6 -5 -5 -5 -5 -5 -5 -4 -4 -4 -4 -4 -3 -3 -3 -2 -2 -1 -1 ----------- Run | Scr Mat Min Exi Min Mat Fac Low Low Dat Pro Fac Ext Cet Arc Hub Fac Was Fac Upp Upp War Pro Fac Upp Upp Zhi Pro Res Qua Res Tes Acc Com Matter Collected 3896 | 276 393 183 216 10 996 200 . 30 10 10 . 130 70 20 17 . 104 . 50 139 11 151 . 76 32 . 79 . 41 421 . . 231 Remotely . | . . . . . . . . . . . . . . . . . . . . . . . . . . . . . . . . . . Salvage Created 4745 | 82 341 70 . 7 1754 . . 47 28 . . 77 . . 1118 . . 56 23 90 . 102 . 163 . . . . 41 203 . 92 451 Parts 263 | 2 28 2 . 2 111 . . 3 3 . . 1 . . 34 . . 10 1 1 . 5 . 5 . . . . 3 9 . 10 33 Haulers Intercepted 11 | . 2 . . . 6 . . . . . . . . . 3 . . . . . . . . . . . . . . . . . . Recyclers Shooed 6 | . 3 . . . 3 . . . . . . . . . . . . . . . . . . . . . . . . . . . . Parts Field Recycled . | . . . . . . . . . . . . . . . . . . . . . . . . . . . . . . . . . . Retrieved Matter . | . . . . . . . . . . . . . . . . . . . . . . . . . . . . . . . . . . Parts Self-Destructed 9 | . . . . . . . 1 3 . . . . . . . . . . . . 2 1 . 2 . . . . . . . . . Prevented 7 | . . . . . . . 4 . . . . . . . . . . . . . 3 . . . . . . . . . . . . Kills | -11 -10 -10 -10 -9 -8 -7 -7 -7 -7 -6 -6 -6 -6 -6 -6 -5 -5 -5 -5 -5 -5 -4 -4 -4 -4 -4 -3 -3 -3 -2 -2 -1 -1 ------- Run | Scr Mat Min Exi Min Mat Fac Low Low Dat Pro Fac Ext Cet Arc Hub Fac Was Fac Upp Upp War Pro Fac Upp Upp Zhi Pro Res Qua Res Tes Acc Com Combat Hostiles Destroyed 81 | . 8 13 . . 22 . . 1 . . . 1 . . 7 . . 1 . . . 6 . 4 . . . . . . . 5 13 Melee 6 | . . . . . . . . 1 . . . 1 . . . . . . . . . . . . . . . . . . . . 4 Guns 27 | . 5 1 . . 21 . . . . . . . . . . . . . . . . . . . . . . . . . . . . AOE 48 | . 3 12 . . 1 . . . . . . . . . 7 . . 1 . . . 6 . 4 . . . . . . . 5 9 Classes Destroyed 16 | 1 4 1 . 1 5 . . . . . . . . . 1 . . . . 1 . . . . . . . . 1 . . . 1 Worker 11 | . . . . 1 . . . . . . . . . . 6 . . 1 . . . . . . . . . . . . . . 3 Builder 7 | . . . . . 3 . . . . . . . . . 3 . . 1 . . . . . . . . . . . . . . . Tunneler 1 | . . . . . 1 . . . . . . . . . . . . . . . . . . . . . . . . . . . . Hauler 11 | . 2 . . . 6 . . . . . . . . . 3 . . . . . . . . . . . . . . . . . . Recycler 5 | 1 . . . . 2 . . . . . . . . . 1 . . . . . . . . . . . . . . 1 . . . Operator 7 | . 1 . . . 3 . . . . . . 1 . . . . . . . . . . . . . . . . . 2 . . . Watcher 6 | . . . . . 2 . . . . . . . . . 3 . . 1 . . . . . . . . . . . . . . . Swarmer 31 | . 3 . . . 3 . . . . . . . . . 3 . . . . . . 4 . 4 . . . . . . . 5 9 Grunt 18 | . 5 1 . . 8 . . . . . . 1 . . . . . 1 . . . . . . . . . . . . . . 2 Protector 3 | . . . . . . . . . . . . . . . 3 . . . . . . . . . . . . . . . . . . Researcher 1 | . . . . . . . . . . . . . . . . . . . . . . . . . . . . . 1 . . . . Sentry 8 | . . . . . 7 . . . . . . . . . 1 . . . . . . . . . . . . . . . . . . Hunter 7 | . . . . . 4 . . 1 . . . . . . . . . . . . . 2 . . . . . . . . . . . Programmer 2 | . . . . . . . . . . . . . . . . . . . . . . . . . . . . . . . . . 2 Decomposer 5 | . . . . . . . . . . . . . . . . . . . 1 . . . . 4 . . . . . . . . . Packrat 1 | . . . . . . . . . . . . . . . . . . . . 1 . . . . . . . . . . . . . Samaritan 2 | . . . . . . . . . . . . . . . . . . . . 1 . . . 1 . . . . . . . . . Assembled 12 | . . 12 . . . . . . . . . . . . . . . . . . . . . . . . . . . . . . . Best Kill Streak 23 | 1 3 8 . 1 6 . . 1 1 . . 1 . . 23 . . 4 . . . 4 . 4 . . . . 1 2 . 5 12 Combat Bots Only 9 | . 3 8 . . 4 . . 1 . . . 1 . . 7 . . 1 . . . 4 . 4 . . . . . . . 5 9 Max Kills in Single Turn 17 | 1 2 2 . 1 2 . . 1 1 . . 1 . . 17 . . 3 1 1 . 3 . 4 . . . . 1 1 . 4 3 Gunslinging . | . . . . . . . . . . . . . . . . . . . . . . . . . . . . . . . . . . Exploded 4 | . 2 2 . . 1 . . . . . . . . . 4 . . 1 . . . 3 . 4 . . . . . . . 4 2 Melee 1 | . . . . . . . . 1 . . . 1 . . . . . . . . . . . . . . . . . . . . 1 Uniques/NPCs Destroyed 1 | . . . . . . . . . 1 . . . . . . . . . . . . . . . . . . . . . . . . Data Miner (-7/Data Miner) Combat | -11 -10 -10 -10 -9 -8 -7 -7 -7 -7 -6 -6 -6 -6 -6 -6 -5 -5 -5 -5 -5 -5 -4 -4 -4 -4 -4 -3 -3 -3 -2 -2 -1 -1 -------- Run | Scr Mat Min Exi Min Mat Fac Low Low Dat Pro Fac Ext Cet Arc Hub Fac Was Fac Upp Upp War Pro Fac Upp Upp Zhi Pro Res Qua Res Tes Acc Com Damage Taken 8079 | . 473 376 . . 1209 . 33 135 189 92 76 83 13 47 1006 206 . 100 . 20 . 25 89 41 . . 66 45 145 48 269 90 3203 Core 1969 | . 81 118 . . 124 . . 70 141 22 41 35 . . 220 102 . . . 20 . . . . . . . 23 . . 23 21 928 Absorbed by Shields 248 | . . . . . . . . . . . . 50 13 . 87 . . 20 . . . . 7 . . . . . . . . . 71 Core Remaining (%) 75 | 100 . . . 20 77 . . . . 66 . . . . 65 . . . . . . 87 . . . . 100 . 98 . 98 . 40 Volleys Fired 204 | 1 37 25 . . 103 . . . . . . 12 . . 2 . . 2 . . . 6 . 1 . . . . . . . 2 13 Largest 2 | 2 2 2 . . 2 . . . . . . 1 . . 1 . . 1 . . . 1 . 1 . . . . . . . 1 1 Hottest 90 | 40 40 40 . . 90 . . . . . . 30 . . 36 . . 80 . . . 80 . 80 . . . . . . . 80 80 Shots Fired 343 | 2 72 27 . . 204 . . . . . . 12 . . 2 . . 2 . . . 6 . 1 . . . . . . . 2 13 Gun 280 | 2 70 4 . . 204 . . . . . . . . . . . . . . . . . . . . . . . . . . . . Cannon . | . . . . . . . . . . . . . . . . . . . . . . . . . . . . . . . . . . Launcher 51 | . 2 23 . . . . . . . . . . . . 2 . . 2 . . . 6 . 1 . . . . . . . 2 13 Special 12 | . . . . . . . . . . . . 12 . . . . . . . . . . . . . . . . . . . . . Kinetic 266 | 2 70 4 . . 190 . . . . . . . . . . . . . . . . . . . . . . . . . . . . Thermal . | . . . . . . . . . . . . . . . . . . . . . . . . . . . . . . . . . . Explosive 48 | . 2 23 . . . . . . . . . . . . 2 . . 2 . . . 6 . 1 . . . . . . . 2 10 Electromagnetic 17 | . . . . . 14 . . . . . . . . . . . . . . . . . . . . . . . . . . . 3 Robot Hit Streak 27 | 2 14 3 . . 27 . . . . . . 2 . . . . . . . . . . . . . . . . . . . 3 7 Robot Miss Streak 6 | . 3 4 . . 6 . . . . . . 1 . . . . . . . . . . . . . . . . . . . . . Penetration Max 1 | . . . . . 1 . . . . . . . . . . . . . . . . . . . . . . . . . . . . Secondary Targets 1 | . . . . . 1 . . . . . . . . . . . . . . . . . . . . . . . . . . . . Max Gunslinging Chain 1 | . . . . . 1 . . . . . . . . . . . . . . . . . . . . . . . . . . . . Shots Hit Robots 279 | 2 50 5 . . 147 . . 7 1 . . 16 . . . . . 3 1 3 . . . 7 . . . . 1 9 . 2 25 Core Hits 238 | 1 22 28 . 2 65 . . 1 1 . . 1 . . 57 . . 9 1 1 . 8 . 5 . . . . 1 3 . 6 26 Critical Hits 8 | . 2 . . . 1 . . . . . . 1 . . . . . . 1 . . . . 2 . . . . . . . . 1 Critical Kills 3 | . 1 . . . . . . . . . . . . . . . . . 1 . . . . 1 . . . . . . . . . Critical Parts Destroyed 5 | . 1 . . . 1 . . . . . . 1 . . . . . . . . . . . 1 . . . . . . . . 1 Melee Attacks 208 | . . . . . . 9 . 7 6 5 5 9 . . 16 10 . 9 1 6 . . 14 7 . . 1 15 9 22 17 13 27 Impact . | . . . . . . . . . . . . . . . . . . . . . . . . . . . . . . . . . . Slashing 205 | . . . . . . 9 . 7 6 5 5 9 . . 16 10 . 9 1 6 . . 14 7 . . 1 15 9 19 17 13 27 Piercing . | . . . . . . . . . . . . . . . . . . . . . . . . . . . . . . . . . . Sneak Attacks 20 | . . . . . . . . . 1 . . 1 . . . . . 1 1 3 . . . 7 . . . . 1 4 . . 1 Combat Hostiles 1 | . . . . . . . . . . . . . . . . . . . . . . . . . . . . . . . . . 1 Follow-up Attacks . | . . . . . . . . . . . . . . . . . . . . . . . . . . . . . . . . . . Damage Inflicted 16419 | 25 813 924 . 31 2686 . . 318 151 . . 602 . . 3103 . . 662 199 481 . 806 . 1600 . . . . 190 613 . 561 2654 Guns 3179 | 25 634 29 . . 2491 . . . . . . . . . . . . . . . . . . . . . . . . . . . . Cannons . | . . . . . . . . . . . . . . . . . . . . . . . . . . . . . . . . . . Explosions 7900 | . 176 895 . . 149 . . . . . . . . . 3103 . . 429 . . . 806 . 414 . . . . . . . 561 1367 Melee 5260 | . . . . . . . . 318 151 . . 602 . . . . . 233 199 481 . . . 1186 . . . . 190 613 . . 1287 Ramming 80 | . 3 . . 31 46 . . . . . . . . . . . . . . . . . . . . . . . . . . . . Kinetic 3052 | 25 634 29 . . 2364 . . . . . . . . . . . . . . . . . . . . . . . . . . . . Thermal 165 | . . . . . 63 . . . . . . . . . 102 . . . . . . . . . . . . . . . . . . Explosive 4734 | . 176 895 . . 86 . . . . . . . . . . . . 429 . . . 806 . 414 . . . . . . . 561 1367 Electromagnetic 3128 | . . . . . 127 . . . . . . . . . 3001 . . . . . . . . . . . . . . . . . . Impact . | . . . . . . . . . . . . . . . . . . . . . . . . . . . . . . . . . . Slashing 5260 | . . . . . . . . 318 151 . . 602 . . . . . 233 199 481 . . . 1186 . . . . 190 613 . . 1287 Piercing . | . . . . . . . . . . . . . . . . . . . . . . . . . . . . . . . . . . Highest Corruption 34 | . . . . . . 2 2 2 2 2 . . . . 5 . . . . . . . . . . . . 1 1 34 34 . 5 Average Corruption 6 | . . . . . . 2 2 2 2 2 . . . . 3 . . . . . . . . . . . . 1 1 34 34 . 2 Corruption Purged . | . . . . . . . . . . . . . . . . . . . . . . . . . . . . . . . . . . Effects 59 | . . . . . . 2 1 . 1 3 . . . . 1 . . . . . . . . . . . . . 2 7 38 . 4 Message Errors 7 | . . . . . . 1 . . . 1 . . . . . . . . . . . . . . . . . . 1 . 2 . 2 Matter Fused 5 | . . . . . . . . . . . . . . . . . . . . . . . . . . . . . . 1 3 . 1 Heat Flow Errors 2 | . . . . . . . 1 . . 1 . . . . . . . . . . . . . . . . . . . . . . . Energy Discharges 1 | . . . . . . . . . . . . . . . . . . . . . . . . . . . . . . . 1 . . Parts Rejected 1 | . . . . . . . . . . . . . . . . . . . . . . . . . . . . . . . 1 . . Data Loss (minor) 2 | . . . . . . . . . . 1 . . . . . . . . . . . . . . . . . . . . . . 1 Data Loss (major) 1 | . . . . . . . . . . . . . . . 1 . . . . . . . . . . . . . . . . . . Misdirections 32 | . . . . . . . . . . . . . . . . . . . . . . . . . . . . . . 6 26 . . Targeting Errors 8 | . . . . . . 1 . . 1 . . . . . . . . . . . . . . . . . . . 1 . 5 . . Overload Shots . | . . . . . . . . . . . . . . . . . . . . . . . . . . . . . . . . . . Overflow Damage 2003 | . 8 23 . . 46 . . 7 . . . 194 . . 56 . . 162 . 295 . 8 . 792 . . . . . 121 . 68 223 Projectiles . | . . . . . . . . . . . . . . . . . . . . . . . . . . . . . . . . . . Explosions 274 | . 8 23 . . 46 . . . . . . . . . 56 . . 18 . . . 8 . 22 . . . . . . . 68 25 Melee 1729 | . . . . . . . . 7 . . . 194 . . . . . 144 . 295 . . . 770 . . . . . 121 . . 198 Knockbacks . | . . . . . . . . . . . . . . . . . . . . . . . . . . . . . . . . . . Impact . | . . . . . . . . . . . . . . . . . . . . . . . . . . . . . . . . . . Kinetic . | . . . . . . . . . . . . . . . . . . . . . . . . . . . . . . . . . . Secondary . | . . . . . . . . . . . . . . . . . . . . . . . . . . . . . . . . . . Self-Inflicted Damage 282 | . 42 108 . . . . . . . . . . . . 132 . . . . . . . . . . . . . . . . . . Shots 9 | . 2 4 . . . . . . . . . . . . 3 . . . . . . . . . . . . . . . . . . Rammed 17 | . 3 . . 6 8 . . . . . . . . . . . . . . . . . . . . . . . . . . . . Targets Rammed 18 | . 3 . . 7 8 . . . . . . . . . . . . . . . . . . . . . . . . . . . . Kicked . | . . . . . . . . . . . . . . . . . . . . . . . . . . . . . . . . . . Crushed 1 | . . . . 1 . . . . . . . . . . . . . . . . . . . . . . . . . . . . . Highest Temperature 232 | . 2 . . . 201 12 159 14 6 232 17 54 45 24 164 . . 76 . 145 13 14 196 57 . . . 148 110 191 190 . 134 Average Temperature 36 | . 2 . . . 38 4 37 7 3 22 5 12 14 9 68 . . 40 . 95 11 12 62 30 . . . 34 52 66 84 . 35 Received Heat Transfer 1217 | . 231 . . . 486 . 18 . 24 12 18 11 . 9 228 30 . 21 . 9 . . 18 . . . 12 . 39 . . . 51 Siege Activations . | . . . . . . . . . . . . . . . . . . . . . . . . . . . . . . . . . . Robots Corrupted 1 | . . . . . . . . . . . . . . . 1 . . . . . . . . . . . . . . . . . . Combat Hostiles . | . . . . . . . . . . . . . . . . . . . . . . . . . . . . . . . . . . Parts Fried 26 | . . . . . 1 . . . . . . . . . 25 . . . . . . . . . . . . . . . . . . Impact Corruptions . | . . . . . . . . . . . . . . . . . . . . . . . . . . . . . . . . . . Robots Melted . | . . . . . . . . . . . . . . . . . . . . . . . . . . . . . . . . . . Combat Hostiles . | . . . . . . . . . . . . . . . . . . . . . . . . . . . . . . . . . . Parts Melted 1 | . . . . . . . . . . . . . . . . . . . . . . . . . . . . . . . . . 1 Heat Transferred 100 | . . . . . . . . . . . . . . . 100 . . . . . . . . . . . . . . . . . . Parts Sabotaged . | . . . . . . . . . . . . . . . . . . . . . . . . . . . . . . . . . . Parts Stolen . | . . . . . . . . . . . . . . . . . . . . . . . . . . . . . . . . . . Parts Stripped . | . . . . . . . . . . . . . . . . . . . . . . . . . . . . . . . . . . Power Chain Reactions 3 | . . . . . 1 . . . . . . . . . 2 . . . . . . . . . . . . . . . . . . Missiles Intercepted . | . . . . . . . . . . . . . . . . . . . . . . . . . . . . . . . . . . Alert | -11 -10 -10 -10 -9 -8 -7 -7 -7 -7 -6 -6 -6 -6 -6 -6 -5 -5 -5 -5 -5 -5 -4 -4 -4 -4 -4 -3 -3 -3 -2 -2 -1 -1 ------- Run | Scr Mat Min Exi Min Mat Fac Low Low Dat Pro Fac Ext Cet Arc Hub Fac Was Fac Upp Upp War Pro Fac Upp Upp Zhi Pro Res Qua Res Tes Acc Com Peak Influence 1925 | 5 202 36 . 5 369 123 . . . . 97 627 634 391 1925 1316 457 738 . . . . 551 . . . . 214 286 379 248 399 750 Initial 1100 | . 3 21 . . . 105 . . . . . 46 266 253 136 1100 457 319 . . . . 88 . . . . . 120 160 213 157 255 Average 218 | 1 61 14 . 1 141 69 . . . . 74 270 426 299 621 1251 457 352 . . . . 248 . . . . 75 191 226 82 282 453 Maximum Alert Level 5 | . 1 . . . 1 . . . . . . 2 2 1 5 4 2 3 . . . . 2 . . . . 1 1 1 1 1 3 Low Security (%) 62 | 100 94 100 . 100 76 100 . . . . 100 43 . . 17 . . 4 . . . . 62 . . . . 92 67 55 88 40 . Level 1 23 | . 5 . . . 23 . . . . . . 36 63 100 48 . . 83 . . . . . . . . . 7 32 44 11 59 25 Level 2 8 | . . . . . . . . . . . . 20 36 . 13 . 100 3 . . . . 37 . . . . . . . . . 63 Level 3 1 | . . . . . . . . . . . . . . . . . . 8 . . . . . . . . . . . . . . 10 Level 4 3 | . . . . . . . . . . . . . . . . 100 . . . . . . . . . . . . . . . . . Level 5 . | . . . . . . . . . . . . . . . 17 . . . . . . . . . . . . . . . . . . High Security . | . . . . . . . . . . . . . . . 2 . . . . . . . . . . . . . . . . . . Max Security . | . . . . . . . . . . . . . . . . . . . . . . . . . . . . . . . . . . Squads Dispatched 23 | . 1 . . . 4 . . . . . 1 3 . . 5 1 . . . . . . . . . . . 1 . . . . 7 Investigation 11 | . . . . . 2 . . . . . . 2 . . 3 . . . . . . . . . . . . . . . . . 4 Extermination 2 | . . . . . . . . . . . . . . . . 1 . . . . . . . . . . . . . . . . 1 Reinforcement 9 | . 1 . . . 2 . . . . . 1 1 . . 1 . . . . . . . . . . . . 1 . . . . 2 Assault 1 | . . . . . . . . . . . . . . . 1 . . . . . . . . . . . . . . . . . . Garrison . | . . . . . . . . . . . . . . . . . . . . . . . . . . . . . . . . . . Intercept . | . . . . . . . . . . . . . . . . . . . . . . . . . . . . . . . . . . Construction Impeded 1 | . . . . . 1 . . . . . . . . . . . . . . . . . . . . . . . . . . . . Haulers Reinforced . | . . . . . . . . . . . . . . . . . . . . . . . . . . . . . . . . . . Stealth | -11 -10 -10 -10 -9 -8 -7 -7 -7 -7 -6 -6 -6 -6 -6 -6 -5 -5 -5 -5 -5 -5 -4 -4 -4 -4 -4 -3 -3 -3 -2 -2 -1 -1 --------- Run | Scr Mat Min Exi Min Mat Fac Low Low Dat Pro Fac Ext Cet Arc Hub Fac Was Fac Upp Upp War Pro Fac Upp Upp Zhi Pro Res Qua Res Tes Acc Com Distress Signals 22 | . 2 . . . 4 . . . . . . 1 3 . 3 . . 1 . . . . 1 . . . . . 2 . 2 . 3 Communications Jammed . | . . . . . . . . . . . . . . . . . . . . . . . . . . . . . . . . . . Distress Signals . | . . . . . . . . . . . . . . . . . . . . . . . . . . . . . . . . . . Times Spotted 361 | . 18 16 . . 41 2 3 4 4 1 4 22 10 3 51 16 . 10 . 10 5 3 8 11 . . 4 8 15 13 18 12 49 Peak Tracking Total 30 | . 4 5 . . 7 2 3 4 4 1 3 4 4 2 30 7 . 5 . 7 6 2 7 10 . . 4 5 15 10 16 7 11 Tactical Retreats 38 | . 2 1 . . 1 . 1 . . . 1 1 . . 7 1 . 1 . 4 1 . 3 1 . . . 3 . 3 1 1 5 Traps | -11 -10 -10 -10 -9 -8 -7 -7 -7 -7 -6 -6 -6 -6 -6 -6 -5 -5 -5 -5 -5 -5 -4 -4 -4 -4 -4 -3 -3 -3 -2 -2 -1 -1 ------- Run | Scr Mat Min Exi Min Mat Fac Low Low Dat Pro Fac Ext Cet Arc Hub Fac Was Fac Upp Upp War Pro Fac Upp Upp Zhi Pro Res Qua Res Tes Acc Com Traps Triggered 25 | . 1 . . . 1 1 . . . . . 3 . . 4 1 . 1 . . . . 1 . . . . . . . . . 12 Indirectly 13 | . . . . . . . . . . . . . . . 2 . . . . . . . . . . . . . . . . . 11 Trap Hack Attempts 2 | . . . . . . . . . . . . . . . . . . . . . . . . . . . . . . . . . 2 Triggered . | . . . . . . . . . . . . . . . . . . . . . . . . . . . . . . . . . . Disarmed . | . . . . . . . . . . . . . . . . . . . . . . . . . . . . . . . . . . Reprogrammed . | . . . . . . . . . . . . . . . . . . . . . . . . . . . . . . . . . . Reused . | . . . . . . . . . . . . . . . . . . . . . . . . . . . . . . . . . . Traps Extracted . | . . . . . . . . . . . . . . . . . . . . . . . . . . . . . . . . . . Installed . | . . . . . . . . . . . . . . . . . . . . . . . . . . . . . . . . . . Triggered 5 | . . . . . . . 1 . . . . . . . . . . . . . 4 . . . . . . . . . . . . Machines | -11 -10 -10 -10 -9 -8 -7 -7 -7 -7 -6 -6 -6 -6 -6 -6 -5 -5 -5 -5 -5 -5 -4 -4 -4 -4 -4 -3 -3 -3 -2 -2 -1 -1 ---------- Run | Scr Mat Min Exi Min Mat Fac Low Low Dat Pro Fac Ext Cet Arc Hub Fac Was Fac Upp Upp War Pro Fac Upp Upp Zhi Pro Res Qua Res Tes Acc Com Machines Disabled 36 | . . . . . 2 . . . . . . 2 . . 23 . . 2 . . . . . . . . . . 2 2 2 . 1 Max in Single Turn 22 | . . . . . 1 . . . . . . . . . 22 . . 1 . . . . . . . . . . 1 1 1 . 1 Garrison Access 7 | . . . . . . . . . . . . . . . 2 . . 1 . . . . 1 . . . . . . 1 1 1 . Network Hub 4 | . . . . . . . . . . . . . . . 4 . . . . . . . . . . . . . . . . . . Machines Sabotaged 1 | . . . . . . . . . . . . . . . 1 . . . . . . . . . . . . . . . . . . Garrisons Compromised . | . . . . . . . . . . . . . . . . . . . . . . . . . . . . . . . . . . Overloaded Fab Kills . | . . . . . . . . . . . . . . . . . . . . . . . . . . . . . . . . . . Fab Network Shutdowns 2 | . . . . . . . . . . . . . . . . . . 1 . . . . 1 . . . . . . . . . . Hacking | -11 -10 -10 -10 -9 -8 -7 -7 -7 -7 -6 -6 -6 -6 -6 -6 -5 -5 -5 -5 -5 -5 -4 -4 -4 -4 -4 -3 -3 -3 -2 -2 -1 -1 --------- Run | Scr Mat Min Exi Min Mat Fac Low Low Dat Pro Fac Ext Cet Arc Hub Fac Was Fac Upp Upp War Pro Fac Upp Upp Zhi Pro Res Qua Res Tes Acc Com Machines Accessed 93 | . 5 . 2 . 7 5 . . 4 . 5 13 1 . 7 3 . 5 . 1 3 . 4 . . 4 . 1 5 3 5 4 6 Terminals 59 | . 3 . . . 7 3 . . . . 4 13 1 . 6 . . 2 . . . . 2 . . . . 1 3 1 4 3 6 Fabricators 4 | . . . . . . . . . . . 1 . . . . 1 . 1 . . . . 1 . . . . . . . . . . Repair Stations 5 | . . . . . . . . . . . . . . . . 2 . 1 . . . . . . . . . . 1 1 . . . Recycling Units 3 | . 2 . . . . 1 . . . . . . . . . . . . . . . . . . . . . . . . . . . Scanalyzers 2 | . . . . . . 1 . . . . . . . . . . . . . . . . . . . . . . 1 . . . . Garrison Access 6 | . . . . . . . . . . . . . . . 1 . . 1 . . . . 1 . . . . . . 1 1 1 . Total Hacks 282 | . 14 . 2 . 19 10 . . 30 . 12 25 1 . 12 15 . 25 . 1 7 . 17 . . 13 . 1 15 8 25 4 26 Successful 175 | . 4 . 2 . 5 7 . . 30 . 6 15 1 . 8 11 . 19 . 1 7 . 10 . . 13 . 1 9 5 9 4 8 Failed 107 | . 10 . . . 14 3 . . . . 6 10 . . 4 4 . 6 . . . . 7 . . . . . 6 3 16 . 18 Catastrophic 17 | . 2 . . . 3 . . . . . 1 1 . . . . . 1 . . . . 1 . . . . . . 1 4 . 3 Database Lockouts . | . . . . . . . . . . . . . . . . . . . . . . . . . . . . . . . . . . Manual 131 | . 9 . 1 . 16 6 . . . . 8 8 1 . 11 2 . 10 . . 1 . 11 . . . . 1 5 4 23 . 14 Terminals 163 | . 9 . . . 19 7 . . . . 7 25 1 . 11 . . 8 . . . . 12 . . . . 1 6 4 24 3 26 Fabricators 26 | . . . . . . . . . . . 5 . . . . 7 . 10 . . . . 4 . . . . . . . . . . Repair Stations 21 | . . . . . . . . . . . . . . . . 8 . 6 . . . . . . . . . . 5 2 . . . Recycling Units 6 | . 5 . . . . 1 . . . . . . . . . . . . . . . . . . . . . . . . . . . Scanalyzers 6 | . . . . . . 2 . . . . . . . . . . . . . . . . . . . . . . 4 . . . . Garrison Access 7 | . . . . . . . . . . . . . . . 1 . . 1 . . . . 1 . . . . . . 2 1 1 . Terminal Hacks 107 | . 2 . 2 . 4 4 . . 30 . 2 13 1 . 1 . . 1 . 1 7 . 4 . . 13 . 1 3 2 7 3 6 Record 19 | . . . 1 . . . . . 11 . . . . . . . . . . . . . . . . 5 . . 1 . . . 1 Part Schematic 19 | . . . . . . . . . 9 . 1 3 . . . . . . . . . . 1 . . 4 . . . . 1 . . Robot Schematic 7 | . . . . . . . . . 7 . . . . . . . . . . . . . . . . . . . . . . . . Robot Analysis 1 | . 1 . . . . . . . . . . . . . . . . . . . . . . . . . . . . . . . . Prototype ID Bank 13 | . . . . . . 1 . . 3 . . . . . . . . . . . 5 . . . . 4 . . . . . . . Open Door 17 | . . . . . . . . . . . 1 7 1 . . . . . . 1 2 . . . . . . . 1 . . 3 1 Level Access Points 2 | . . . . . . . . . . . . . . . 1 . . . . . . . . . . . . . 1 . . . . Branch Access Points 5 | . . . . . . 1 . . . . . . . . . . . 1 . . . . 1 . . . . 1 . 1 . . . Terminal Index 1 | . . . . . . 1 . . . . . . . . . . . . . . . . . . . . . . . . . . . Scanalyzer Index 1 | . . . . . . . . . . . . . . . . . . . . . . . . . . . . . . . . . 1 Unreport Threat 14 | . 1 . . . 2 1 . . . . . 2 . . . . . . . . . . 2 . . . . . . 1 5 . . Locate Traps 1 | . . . . . 1 . . . . . . . . . . . . . . . . . . . . . . . . . . . . Maintenance Status 1 | . . . . . . . . . . . . . . . . . . . . . . . . . . . . . . . 1 . . Patrol Status 1 | . . . . . . . . . . . . . . . . . . . . . . . . . . . . . . . . . 1 Recall Investigation 1 | . . . . . . . . . . . . 1 . . . . . . . . . . . . . . . . . . . . . Hauler Manifests 1 | . . . . . 1 . . . . . . . . . . . . . . . . . . . . . . . . . . . . EX-Prototype ID Bank 1 | . . . 1 . . . . . . . . . . . . . . . . . . . . . . . . . . . . . . Disengage Seal 2 | . . . . . . . . . . . . . . . . . . . . . . . . . . . . . . . . . 2 Fabricator Hacks 17 | . . . . . . . . . . . 3 . . . . 4 . 8 . . . . 2 . . . . . . . . . . Load Schematic 6 | . . . . . . . . . . . 1 . . . . 1 . 3 . . . . 1 . . . . . . . . . . Build 11 | . . . . . . . . . . . 2 . . . . 3 . 5 . . . . 1 . . . . . . . . . . Repair Station Hacks 16 | . . . . . . . . . . . . . . . . 5 . 6 . . . . . . . . . . 3 2 . . . Scan Component 8 | . . . . . . . . . . . . . . . . 2 . 3 . . . . . . . . . . 2 1 . . . Repair 7 | . . . . . . . . . . . . . . . . 2 . 3 . . . . . . . . . . 1 1 . . . Refit 1 | . . . . . . . . . . . . . . . . 1 . . . . . . . . . . . . . . . . . Recycling Unit Hacks 2 | . 1 . . . . 1 . . . . . . . . . . . . . . . . . . . . . . . . . . . Retrieve Components 2 | . 1 . . . . 1 . . . . . . . . . . . . . . . . . . . . . . . . . . . Scanalyzer 5 | . . . . . . 2 . . . . . . . . . . . . . . . . . . . . . . 3 . . . . Insert Component 4 | . . . . . . 1 . . . . . . . . . . . . . . . . . . . . . . 3 . . . . Analyze 1 | . . . . . . 1 . . . . . . . . . . . . . . . . . . . . . . . . . . . Garrison Access Hacks 6 | . . . . . . . . . . . . . . . 1 . . 1 . . . . 1 . . . . . . 1 1 1 . Seal Access 6 | . . . . . . . . . . . . . . . 1 . . 1 . . . . 1 . . . . . . 1 1 1 . Unauthorized Hacks 22 | . 1 . . . 1 . . . . . 1 2 . . 6 2 . 3 . . . . 3 . . . . . . . 1 . 2 Terminals 15 | . 1 . . . 1 . . . . . . 2 . . 6 . . 1 . . . . 1 . . . . . . . 1 . 2 Track 3 | . . . . . . . . . . . . . . . 1 . . . . . . . 1 . . . . . . . 1 . . Assimilate 5 | . . . . . . . . . . . . 2 . . . . . 1 . . . . . . . . . . . . . . 2 Detonate 3 | . . . . . . . . . . . . . . . 3 . . . . . . . . . . . . . . . . . . Operators 3 | . 1 . . . 1 . . . . . . . . . 1 . . . . . . . . . . . . . . . . . . Sabotage 1 | . . . . . . . . . . . . . . . 1 . . . . . . . . . . . . . . . . . . Fabricators 7 | . . . . . . . . . . . 1 . . . . 2 . 2 . . . . 2 . . . . . . . . . . Prioritize 4 | . . . . . . . . . . . 1 . . . . 1 . 1 . . . . 1 . . . . . . . . . . Siphon 3 | . . . . . . . . . . . . . . . . 1 . 1 . . . . 1 . . . . . . . . . . Repair Stations . | . . . . . . . . . . . . . . . . . . . . . . . . . . . . . . . . . . Recycling Units . | . . . . . . . . . . . . . . . . . . . . . . . . . . . . . . . . . . Scanalyzers . | . . . . . . . . . . . . . . . . . . . . . . . . . . . . . . . . . . Garrison Access . | . . . . . . . . . . . . . . . . . . . . . . . . . . . . . . . . . . Data Cores Recovered 2 | . . . . . 2 . . . . . . . . . . . . . . . . . . . . . . . . . . . . Used 1 | . . . . . 1 . . . . . . . . . . . . . . . . . . . . . . . . . . . . Hacking Detections 50 | . 4 . . . 6 4 . . . . 5 8 1 . 5 1 . 2 . . . . 3 . . . . . 3 1 4 . 3 Full Trace Events 5 | . . . . . 1 . . . . . . 1 . . 1 . . . . . . . . . . . . . . . . . 2 Feedback Events 1 | . . . . . . . . . . . . . . . . . . . . . . . . . . . . . . . . . 1 Corruption 1 | . . . . . . . . . . . . . . . . . . . . . . . . . . . . . . . . . 1 Feedback Blocked . | . . . . . . . . . . . . . . . . . . . . . . . . . . . . . . . . . . Robot Schematics Acquired 7 | . . . . . . . . . 7 . . . . . . . . . . . . . . . . . . . . . . . . Robots Built . | . . . . . . . . . . . . . . . . . . . . . . . . . . . . . . . . . . Matter . | . . . . . . . . . . . . . . . . . . . . . . . . . . . . . . . . . . Time . | . . . . . . . . . . . . . . . . . . . . . . . . . . . . . . . . . . Total Robot Build Rating . | . . . . . . . . . . . . . . . . . . . . . . . . . . . . . . . . . . Part Schematics Acquired 20 | . . . . . . 1 . . 9 . 1 3 . . . . . . . . . . 1 . . 4 . . . . 1 . . Parts Built 10 | . . . . . . . . . . . 2 . . . . 3 . 4 . . . . 1 . . . . . . . . . . Matter 2164 | . . . . . . . . . . . 504 . . . . 567 . 805 . . . . 288 . . . . . . . . . . Time 788 | . . . . . . . . . . . 201 . . . . 133 . 352 . . . . 102 . . . . . . . . . . Total Part Build Rating 46 | . . . . . . . . . . . 8 . . . . 12 . 18 . . . . 8 . . . . . . . . . . Parts Repaired 5 | . . . . . . . . . . . . . . . . 1 . 3 . . . . . . . . . . 1 . . . . Time 334 | . . . . . . . . . . . . . . . . 140 . 94 . . . . . . . . . . 26 74 . . . Parts Recycled . | . . . . . . . . . . . . . . . . . . . . . . . . . . . . . . . . . . Recycled Matter . | . . . . . . . . . . . . . . . . . . . . . . . . . . . . . . . . . . Retrieved Matter . | . . . . . . . . . . . . . . . . . . . . . . . . . . . . . . . . . . Retrieved Components 2 | . 2 . . . . . . . . . . . . . . . . . . . . . . . . . . . . . . . . Parts Scanalyzed 1 | . . . . . . 1 . . . . . . . . . . . . . . . . . . . . . . . . . . . Part Schematics Acquired 1 | . . . . . . 1 . . . . . . . . . . . . . . . . . . . . . . . . . . . Parts Damaged . | . . . . . . . . . . . . . . . . . . . . . . . . . . . . . . . . . . Bothacking | -11 -10 -10 -10 -9 -8 -7 -7 -7 -7 -6 -6 -6 -6 -6 -6 -5 -5 -5 -5 -5 -5 -4 -4 -4 -4 -4 -3 -3 -3 -2 -2 -1 -1 ------------ Run | Scr Mat Min Exi Min Mat Fac Low Low Dat Pro Fac Ext Cet Arc Hub Fac Was Fac Upp Upp War Pro Fac Upp Upp Zhi Pro Res Qua Res Tes Acc Com Used RIF Installer . | . . . . . . . . . . . . . . . . . . . . . . . . . . . . . . . . . . Robots Hacked 3 | . . . . . . . . . . . . 1 . . . . . . . . . . . . . . . . . 2 . . . Non-combat . | . . . . . . . . . . . . . . . . . . . . . . . . . . . . . . . . . . Combat 3 | . . . . . . . . . . . . 1 . . . . . . . . . . . . . . . . . 2 . . . Robot Hacks Applied 3 | . . . . . . . . . . . . 1 . . . . . . . . . . . . . . . . . 2 . . . parse_system 3 | . . . . . . . . . . . . 1 . . . . . . . . . . . . . . . . . 2 . . . Manual 1 | . . . . . . . . . . . . . . . . . . . . . . . . . . . . . . 1 . . . Relay Couplers Released . | . . . . . . . . . . . . . . . . . . . . . . . . . . . . . . . . . . Robots Rewired 8 | . . . . . . . . . . . . 8 . . . . . . . . . . . . . . . . . . . . . Allies Hacked . | . . . . . . . . . . . . . . . . . . . . . . . . . . . . . . . . . . Hacks Repelled . | . . . . . . . . . . . . . . . . . . . . . . . . . . . . . . . . . . Allies | -11 -10 -10 -10 -9 -8 -7 -7 -7 -7 -6 -6 -6 -6 -6 -6 -5 -5 -5 -5 -5 -5 -4 -4 -4 -4 -4 -3 -3 -3 -2 -2 -1 -1 -------- Run | Scr Mat Min Exi Min Mat Fac Low Low Dat Pro Fac Ext Cet Arc Hub Fac Was Fac Upp Upp War Pro Fac Upp Upp Zhi Pro Res Qua Res Tes Acc Com Total Allies 27 | . . 1 . . . . . . . . . 20 5 . . . . 1 . . . . . . . . . . . . . . . Largest Group 16 | . . 1 . . . . . . . . . 16 16 3 . . . 1 . . . . . . . . . . . . . . . Highest-Rated Group 579 | . . 31 . . . . . . . . . 579 579 282 . . . 26 . . . . . . . . . . . . . . . Highest-Rated Ally 156 | . . 31 . . . . . . . . . 156 143 94 . . . 26 . . . . . . . . . . . . . . . Total Orders 1 | . . . . . . . . . . . . . 1 . . . . . . . . . . . . . . . . . . . . STAY 1 | . . . . . . . . . . . . . 1 . . . . . . . . . . . . . . . . . . . . Ally Attacks 326 | . . 7 . . . . . . . . . 170 118 14 8 9 . . . . . . . . . . . . . . . . . Total Damage 8547 | . . 42 . . . . . . . . . 4015 3152 552 388 398 . . . . . . . . . . . . . . . . . Kills 51 | . . 1 . . . . . . . . . 22 17 4 2 5 . . . . . . . . . . . . . . . . . Allies Corrupted 1 | . . . . . . . . . . . . . . . 1 . . . . . . . . . . . . . . . . . . Allies Melted 1 | . . . . . . . . . . . . . . . . . . . . . . . . . . . . . . . . . 1 Turrets Deployed 3 | . . . . . . . . . . . . . . . 2 1 . . . . . . . . . . . . . . . . . Intel | -11 -10 -10 -10 -9 -8 -7 -7 -7 -7 -6 -6 -6 -6 -6 -6 -5 -5 -5 -5 -5 -5 -4 -4 -4 -4 -4 -3 -3 -3 -2 -2 -1 -1 ------- Run | Scr Mat Min Exi Min Mat Fac Low Low Dat Pro Fac Ext Cet Arc Hub Fac Was Fac Upp Upp War Pro Fac Upp Upp Zhi Pro Res Qua Res Tes Acc Com Robot Analysis Total 116 | . 1 . . . . . . . 115 . . . . . . . . . . . . . . . . . . . . . . . . Derelict Logs Recovered 15 | . . 1 . 2 . . 1 3 . 1 . . . . . . . . 3 1 . 1 . 1 1 . . . . . . . . Drone Launches . | . . . . . . . . . . . . . . . . . . . . . . . . . . . . . . . . . . Drone Recoveries . | . . . . . . . . . . . . . . . . . . . . . . . . . . . . . . . . . . Exploration | -11 -10 -10 -10 -9 -8 -7 -7 -7 -7 -6 -6 -6 -6 -6 -6 -5 -5 -5 -5 -5 -5 -4 -4 -4 -4 -4 -3 -3 -3 -2 -2 -1 -1 ------------- Run | Scr Mat Min Exi Min Mat Fac Low Low Dat Pro Fac Ext Cet Arc Hub Fac Was Fac Upp Upp War Pro Fac Upp Upp Zhi Pro Res Qua Res Tes Acc Com Turns Passed 9824 | 79 984 497 476 865 1817 177 100 100 48 170 215 817 292 46 191 292 45 563 61 154 229 132 158 51 67 50 73 89 99 229 132 61 465 Spaces Moved 12035 | 41 463 226 247 424 777 394 312 303 101 347 341 805 259 64 442 172 142 369 194 508 786 431 326 155 244 159 288 287 306 555 544 226 797 Core 7 | 6 . 1 . . . . . . . . . . . . . . . . . . . . . . . . . . . . . . . Treads 2171 | 35 463 225 247 424 777 . . . . . . . . . . . . . . . . . . . . . . . . . . . . Legs . | . . . . . . . . . . . . . . . . . . . . . . . . . . . . . . . . . . Wheels . | . . . . . . . . . . . . . . . . . . . . . . . . . . . . . . . . . . Hover 13 | . . . . . . . . . . . . . . . 13 . . . . . . . . . . . . . . . . . . Flight 9844 | . . . . . . 394 312 303 101 347 341 805 259 64 429 172 142 369 194 508 786 431 326 155 244 159 288 287 306 555 544 226 797 Fastest Speed 5 | 50 160 160 180 200 160 28 28 28 28 28 25 24 25 25 18 20 29 27 27 21 17 24 6 7 20 17 20 7 5 7 5 6 5 Average Speed 51 | 147 177 192 190 200 174 28 28 28 28 28 26 24 25 25 25 34 29 30 27 27 26 24 17 19 20 18 20 13 12 11 11 12 16 Slowest Speed 700 | 160 180 700 200 200 200 111 28 28 28 28 28 25 25 25 92 97 29 94 28 28 94 24 24 20 20 20 89 17 14 20 14 13 32 Overloaded Moves 503 | . . . . . . . . . . . . . . . 155 11 . . . 41 9 . 38 8 . . . 27 47 10 64 6 87 Propulsion Burnouts . | . . . . . . . . . . . . . . . . . . . . . . . . . . . . . . . . . . Robots Hopped 119 | . . . . . . 3 . 3 1 . 10 16 . 2 22 . . 10 . . 6 . . . . 1 . 6 5 18 7 4 5 Cave-ins Triggered . | . . . . . . . . . . . . . . . . . . . . . . . . . . . . . . . . . . Exploration Rate (%) 50 | 4 79 65 60 82 62 12 57 51 80 61 8 87 73 81 52 9 83 17 40 80 96 64 15 34 46 61 52 13 39 22 85 6 33 Regions Visited 33 Branch Regions 22 Pre-discovered Areas 29 | . . . 1 . . . . . 24 . . . . . . . . . . . . 1 . . . 3 . . . . . . . Known Exits Taken 7 | . . . . . . 1 . . . . . . . . 1 . . 1 . . . . 1 . . . . 1 1 1 . . . Unknown Exits Taken 24 | 1 1 1 1 1 1 . 1 1 1 1 1 1 1 1 . . . . 1 1 1 1 . 1 1 1 1 . . . 1 1 . Scrap Searched 18 | . . 1 . 3 . . . 1 . 1 . . . . . . . . 2 3 . 3 . . 1 . 3 . . . . . . Spaces Dug 178 | . 7 13 . . . 9 . . 1 5 5 . . . 27 10 . 6 . 3 . . 14 . . . 1 15 6 9 15 13 19 Terrain Destroyed 1566 | . 8 147 . . 26 9 . . 1 5 5 . . . 1011 10 . 9 . 3 . 104 14 26 . . 1 15 6 9 15 32 110 Melee 133 | . . . . . . 9 . . 1 5 5 . . . 16 10 . 6 . 3 . . 14 . . . 1 15 6 9 15 13 5 Projectile . | . . . . . . . . . . . . . . . . . . . . . . . . . . . . . . . . . . AOE 1433 | . 8 147 . . 26 . . . . . . . . . 995 . . 3 . . . 104 . 26 . . . . . . . 19 105 Terrain Rammed . | . . . . . . . . . . . . . . . . . . . . . . . . . . . . . . . . . . Walls Destroyed . | . . . . . . . . . . . . . . . . . . . . . . . . . . . . . . . . . . Machines Disabled . | . . . . . . . . . . . . . . . . . . . . . . . . . . . . . . . . . . Actions | -11 -10 -10 -10 -9 -8 -7 -7 -7 -7 -6 -6 -6 -6 -6 -6 -5 -5 -5 -5 -5 -5 -4 -4 -4 -4 -4 -3 -3 -3 -2 -2 -1 -1 --------- Run | Scr Mat Min Exi Min Mat Fac Low Low Dat Pro Fac Ext Cet Arc Hub Fac Was Fac Upp Upp War Pro Fac Upp Upp Zhi Pro Res Qua Res Tes Acc Com Total 15044 | 54 555 260 256 436 1091 454 323 307 113 414 447 1396 485 90 479 396 146 800 198 515 798 451 412 167 261 179 301 314 350 686 594 238 1078 Wait 2166 | . 15 4 . . 93 . 12 1 5 59 106 519 224 26 7 198 . 390 . . 4 14 57 5 18 4 11 6 31 111 19 . 227 Move 11787 | 40 462 225 246 423 777 387 311 296 98 346 321 776 258 59 403 172 141 349 193 507 776 430 325 154 243 156 287 275 295 522 529 217 788 Hop 98 | . . . . . . 3 . 3 1 . 9 12 . 2 16 . . 9 . . 3 . . . . 1 . 5 5 14 7 4 4 Pick Up 117 | 6 18 1 5 2 30 4 . . 1 2 2 3 . . 1 2 4 8 . . 3 . 3 . . 5 1 5 4 5 1 . 1 Fast Attach 68 | 7 3 1 . . 13 2 . . . . 1 3 1 1 1 4 . 4 2 1 2 . 1 . . 4 . . 1 . 8 . 8 Attach 57 | . 1 1 1 . 3 13 . . 1 2 1 2 1 . 4 3 . 6 . . 1 . 2 . . 2 . 3 . 5 . 1 4 Detach 24 | . . . . . 4 3 . . 1 . . 1 . 1 2 2 . 4 . . . . . . . 1 . . . 3 1 1 . Swap 70 | . 5 3 . 1 25 8 . . . . 1 4 . 1 3 . . . 2 . 5 1 2 . . 1 1 3 2 1 1 . . Drop 136 | . 11 . 4 3 36 25 . . . . 1 5 1 . 4 5 1 5 . 1 4 . 4 . . 5 . 2 3 3 11 . 2 Fire 204 | 1 37 25 . . 103 . . . . . . 12 . . 2 . . 2 . . . 6 . 1 . . . . . . . 2 13 Melee 208 | . . . . . . 9 . 7 6 5 5 9 . . 16 10 . 9 1 6 . . 14 7 . . 1 15 9 22 17 13 27 Ram . | . . . . . . . . . . . . . . . . . . . . . . . . . . . . . . . . . . Kick . | . . . . . . . . . . . . . . . . . . . . . . . . . . . . . . . . . . Crush 17 | . 3 . . 7 7 . . . . . . . . . . . . . . . . . . . . . . . . . . . . Escape Stasis 90 | . . . . . . . . . . . . 50 . . 20 . . 14 . . . . 4 . . . . . . . . . 2 Rewire . | . . . . . . . . . . . . . . . . . . . . . . . . . . . . . . . . . . Trap 2 | . . . . . . . . . . . . . . . . . . . . . . . . . . . . . . . . . 2 Miscellaneous . | . . . . . . . . . . . . . . . . . . . . . . . . . . . . . . . . . . Route ------- -11/Scrapyard -10/Materials -10/Mines (discovered 2 exits: [*Mat] / *Exi) -10/Exiles -9/Mines -8/Materials (discovered 2 exits: *Fac / *Sto) -7/Factory (discovered 2 exits: *Low x2) -7/Lower Caves -7/Lower Caves -7/Data Miner -6/Proximity Caves -6/Factory (discovered 3 exits: *Fac / *Low / *Ext) -6/Extension (discovered 2 exits: *Fac / *Cet) -6/Cetus (discovered 2 exits: *Fac / [*Arc]) -6/Archives (discovered 2 exits: *Fac / *Hub) -6/Hub_04(d) (discovered 4 exits: *Fac x4) -5/Factory -5/Waste -5/Factory (discovered 2 exits: *Upp x2) -5/Upper Caves -5/Upper Caves (discovered 2 exits: *Fac / *War) -5/Warlord -4/Proximity Caves -4/Factory (discovered 3 exits: *Upp x2 / Arm) -4/Upper Caves -4/Upper Caves -4/Zhirov -3/Proximity Caves -3/Research (discovered 5 exits: Res x3 / *Qua x2) -3/Quarantine -2/Research (discovered 3 exits: *Acc / *Tes x2) -2/Testing -1/Access -1/Command Tau Ceti IV Orbit History --------- Turn | Location | Event 40 | -11/Scrapyard | Discovered new exit (range 16) 80 | -11/Scrapyard | Entered Materials 311 | -10/Materials | Build established: Mutant 638 | -10/Materials | Discovered new exit (range 10) 1064 | -10/Materials | Entered Mines 1100 | -10/Mines | Learned Materials terminal intel 1101 | -10/Mines | Assembled infested the area 1106 | -10/Mines | Assisted by a Guerilla fighting off Assembled 1117 | -10/Mines | Found a damaged Exp. Sensor Array with a note attached 1120 | -10/Mines | Found Prototype Device 1166 | -10/Mines | Core integrity fell below 50% 1190 | -10/Mines | Destroyed 8 combat bots 1258 | -10/Mines | Received a Mining Laser from a helpful Derelict 1534 | -10/Mines | Discovered new exit (range 10) 1550 | -10/Mines | Deemed a non-threat by the Exiles lab entrance 1550 | -10/Mines | Discovered new exit (range 5) 1561 | -10/Mines | Entered Exiles 1610 | -10/Exiles | Met 8R-AWN 1635 | -10/Exiles | Met EX-HEX 1684 | -10/Exiles | Met EX-BIN 1709 | -10/Exiles | Aligned with FarCom system 1711 | -10/Exiles | Given EX-Vault access code 1758 | -10/Exiles | Opened EX-Vault 1768 | -10/Exiles | Found Cloak of Protection 1774 | -10/Exiles | Found Longsword +1 1782 | -10/Exiles | Found Deploy-a-Sentry 1785 | -10/Exiles | Found Deploy-a-Sentry 1788 | -10/Exiles | Found Deploy-a-Sentry 1829 | -10/Exiles | Warned to stay clear of 0b10 Research branches 1897 | -10/Exiles | Met EX-DEC 1907 | -10/Exiles | Learned location of Zion (-6) 2007 | -10/Exiles | Discovered new exit (range 14) 2037 | -10/Exiles | Stole three prototypes: Cloak of Protection, Longsword +1, Deploy-a-Sentry 2037 | -10/Exiles | Entered Mines 2270 | -9/Mines | Learned Materials terminal intel 2468 | -9/Mines | Learned location of 1 exit from Materials 2886 | -9/Mines | Discovered new exit (range 8) 2902 | -9/Mines | Entered Materials 2902 | -8/Materials | Evolved 4 slots: Propulsion x1, Utility x3 2903 | -8/Materials | Identified exit to Storage 2904 | -8/Materials | Loaded intel: 12 terminal locations 3860 | -8/Materials | Build established: Hauler-Mutant 4712 | -8/Materials | Discovered new exit (range 5) 4719 | -8/Materials | Entered Factory 4719 | -7/Factory | Evolved 2 slots: Power x1, Propulsion x1 4721 | -7/Factory | FarCom data flow suspended 4826 | -7/Factory | Identified exit to Lower Caves 4896 | -7/Factory | Entered Lower Caves 4994 | -7/Lower Caves | Discovered new exit (range 7) 4996 | -7/Lower Caves | Entered another Lower Caves area 5013 | -7/Lower Caves | Learned Factory terminal intel 5015 | -7/Lower Caves | Learned Factory stockpile data 5020 | -7/Lower Caves | Build established: Hacker-Sprinter 5055 | -7/Lower Caves | Learned Factory emergency access door positions 5071 | -7/Lower Caves | Encountered a Warlord checkpoint 5079 | -7/Lower Caves | Spotted 30-DC8(f) 5080 | -7/Lower Caves | Spotted GD-X5L(f) 5081 | -7/Lower Caves | Encountered a Master Thief 5081 | -7/Lower Caves | Encountered a Master Thief 5081 | -7/Lower Caves | Spotted MW-Z75(f) 5094 | -7/Lower Caves | Discovered new exit (range 5) 5096 | -7/Lower Caves | Entered Data Miner 5096 | -7/Data Miner | Discovered new exit (range 6) 5102 | -7/Data Miner | Met Data Miner 5109 | -7/Data Miner | Learned location of Section 7 (-3) 5109 | -7/Data Miner | Acquired the access code to Warlord's prototype stash 5112 | -7/Data Miner | Received God Mode back door access code from Data Miner 5116 | -7/Data Miner | Destroyed Data Miner 5120 | -7/Data Miner | Found Prototype Hackware 5121 | -7/Data Miner | Interfaced with the Data Conduit 5144 | -7/Data Miner | Entered Proximity Caves 5146 | -6/Proximity Caves | Learned 4 Factory zone layouts 5152 | -6/Proximity Caves | Spotted B-75 Beast 5283 | -6/Proximity Caves | Lost 3 parts (1n2u) 5314 | -6/Proximity Caves | Discovered new exit (range 3) 5314 | -6/Proximity Caves | Entered Factory 5314 | -6/Factory | Evolved 2 slots: Propulsion x1, Utility x1 5314 | -6/Factory | Identified Deep Network Scanner 5315 | -6/Factory | Identified exit to Lower Caves 5318 | -6/Factory | Loaded intel: 289 machine locations 5319 | -6/Factory | Loaded intel: 22 terminal locations 5364 | -6/Factory | Discovered new exit (range 6) 5411 | -6/Factory | Discovered new exit (range 20) 5425 | -6/Factory | Fabricated Cld. VTOL Module? 5514 | -6/Factory | Fabricated Cld. VTOL Module (x1) 5529 | -6/Factory | Entered Extension 5530 | -6/Extension | Loaded intel: 35 machine locations 5540 | -6/Extension | Rescued a captive Derelict 5553 | -6/Extension | Rescued A7 5635 | -6/Extension | Rescued a captive Derelict 6029 | -6/Extension | Spotted B-75 Beast 6059 | -6/Extension | Allies destroyed B-75 Beast 6060 | -6/Extension | Spotted B-75 Beast 6099 | -6/Extension | Allies destroyed B-75 Beast 6153 | -6/Extension | Rescued a captive Derelict 6154 | -6/Extension | Rescued a captive Derelict 6161 | -6/Extension | Rescued a captive Derelict 6162 | -6/Extension | Rescued a captive Derelict 6189 | -6/Extension | Rescued a captive Derelict 6192 | -6/Extension | Rescued a captive Derelict 6193 | -6/Extension | Rescued a captive Derelict 6251 | -6/Extension | Discovered new exit (range 10) 6251 | -6/Extension | Discovered new exit (range 6) 6346 | -6/Extension | Entered Cetus 6346 | -6/Cetus | Accompanied by 16 allies (A7) 6347 | -6/Cetus | Loaded intel: 24 machine locations 6351 | -6/Cetus | Acquired a Cetus Manufacturing Module code from A7 6354 | -6/Cetus | Spotted Cetus Guard 6354 | -6/Cetus | Spotted Cetus Guard 6354 | -6/Cetus | Spotted Cetus Guard 6354 | -6/Cetus | Spotted Cetus Guard 6368 | -6/Cetus | Allies destroyed Cetus Guard 6373 | -6/Cetus | Allies destroyed Cetus Guard 6382 | -6/Cetus | Extracted ID and sensor layout for unrecognized location from A7's data core 6385 | -6/Cetus | Allies destroyed Cetus Guard 6387 | -6/Cetus | Allies destroyed Cetus Guard 6395 | -6/Cetus | Started Cetus Manufacturing Module 6420 | -6/Cetus | Manufactured an Enhanced Grunt 6425 | -6/Cetus | Discovered new exit (range 22) 6445 | -6/Cetus | Manufactured an Enhanced Grunt 6461 | -6/Cetus | Spotted Cetus Guard 6470 | -6/Cetus | Manufactured an Enhanced Grunt 6473 | -6/Cetus | Spotted Cetus Guard 6474 | -6/Cetus | Spotted Cetus Guard 6480 | -6/Cetus | Spotted Cetus Guard 6484 | -6/Cetus | Allies destroyed Cetus Guard 6495 | -6/Cetus | Manufactured an Enhanced Grunt 6520 | -6/Cetus | Manufactured an Enhanced Grunt 6608 | -6/Cetus | Discovered new exit (range 21) 6611 | -6/Cetus | Met Revision 17 6638 | -6/Cetus | Entered Archives 6638 | -6/Archives | Accompanied by 3 allies 6639 | -6/Archives | Loaded intel: 8 machine locations 6678 | -6/Archives | Discovered new exit (range 14) 6681 | -6/Archives | Discovered new exit (range 13) 6684 | -6/Archives | Entered Hub_04(d) 6685 | -6/Hub_04(d) | Loaded intel: 85 machine locations 6701 | -6/Hub_04(d) | Identified exit to Factory 6819 | -6/Hub_04(d) | Network Hub disabled 6834 | -6/Hub_04(d) | Spotted Lightning 6834 | -6/Hub_04(d) | Spotted Lightning 6836 | -6/Hub_04(d) | Network Hub disabled 6836 | -6/Hub_04(d) | Network Hub disabled 6836 | -6/Hub_04(d) | Garrison activated, responded to threat 6837 | -6/Hub_04(d) | DAS Turret deployed 6846 | -6/Hub_04(d) | Spotted Lightning 6847 | -6/Hub_04(d) | Spotted Lightning 6847 | -6/Hub_04(d) | Spotted Lightning 6848 | -6/Hub_04(d) | Spotted Lightning 6849 | -6/Hub_04(d) | DAS Turret deployed 6849 | -6/Hub_04(d) | Spotted Lightning 6852 | -6/Hub_04(d) | Spotted Lightning 6853 | -6/Hub_04(d) | Spotted Lightning 6853 | -6/Hub_04(d) | Spotted Lightning 6854 | -6/Hub_04(d) | Spotted Lightning 6857 | -6/Hub_04(d) | Destroyed 7 combat bots 6865 | -6/Hub_04(d) | Spotted B-75 Beast 6870 | -6/Hub_04(d) | Network Hub disabled 6870 | -6/Hub_04(d) | High security lockdown imminent 6875 | -6/Hub_04(d) | Entered Factory 6875 | -5/Factory | Evolved 2 slots: Utility x2 6876 | -5/Factory | Identified exit to Upper Caves 6877 | -5/Factory | Loaded intel: 238 machine locations 6883 | -5/Factory | Lost 9 parts (2p4n2u1w) 6923 | -5/Factory | DAS Turret deployed 6968 | -5/Factory | Fabricated Cld. VTOL Module (x1) 7003 | -5/Factory | Fabricated Cld. VTOL Module (x1) 7037 | -5/Factory | Fabricated Cld. VTOL Module? 7120 | -5/Factory | Repaired Cld. VTOL Module 7167 | -5/Factory | Manually triggered Chute Trap 7167 | -5/Factory | Sucked down chute 7167 | -5/Factory | Entered Waste 7167 | -5/Waste | The area was eerily silent 7209 | -5/Waste | Discovered new exit (range 10) 7212 | -5/Waste | Entered Factory 7213 | -5/Factory | Loaded intel: 241 machine locations 7336 | -5/Factory | Fabricated Cld. VTOL Module (x1) 7405 | -5/Factory | Fabricated Cld. VTOL Module (x1) 7474 | -5/Factory | Fabricated Cld. VTOL Module (x1) 7560 | -5/Factory | Fabricated Mni. Smartbomb Launcher (x1) 7623 | -5/Factory | Repaired Mic. Nuclear Core 7649 | -5/Factory | Repaired Lgt. Angular Momentum Engine 7698 | -5/Factory | Repaired Broken Q-thruster 7709 | -5/Factory | Local fabrication network quarantined 7717 | -5/Factory | Spotted B-75 Beast 7775 | -5/Factory | Entered Upper Caves 7781 | -5/Upper Caves | Learned Factory stockpile data 7798 | -5/Upper Caves | Learned Factory security intel 7831 | -5/Upper Caves | Discovered new exit (range 9) 7836 | -5/Upper Caves | Entered another Upper Caves area 7851 | -5/Upper Caves | Discovered new exit (range 17) 7978 | -5/Upper Caves | Encountered a Warlord checkpoint 7988 | -5/Upper Caves | Discovered new exit (range 7) 7990 | -5/Upper Caves | Entered Warlord 8120 | -5/Warlord | Met Warlord 8122 | -5/Warlord | Opened Warlord's prototype stash 8126 | -5/Warlord | Found Spectral Analyzer 8138 | -5/Warlord | Found Vortex Chain Reactor 8140 | -5/Warlord | Found Exp. Phase Shifter 8145 | -5/Warlord | Warlord's base attacked by MAIN.C 8202 | -5/Warlord | Opened side exit 8217 | -5/Warlord | Discovered new exit (range 8) 8219 | -5/Warlord | Entered Proximity Caves 8348 | -4/Proximity Caves | Discovered new exit (range 15) 8351 | -4/Proximity Caves | Entered Factory 8351 | -4/Factory | Evolved 2 slots: Propulsion x2 8352 | -4/Factory | Identified exit to Armory 8355 | -4/Factory | Loaded intel: 279 machine locations 8361 | -4/Factory | Identified exit to Upper Caves 8450 | -4/Factory | Local fabrication network quarantined 8496 | -4/Factory | Fabricated Exp. Transmission Jammer? 8509 | -4/Factory | Entered Upper Caves 8513 | -4/Upper Caves | Encountered a Warlord checkpoint 8514 | -4/Upper Caves | Learned 8 Research zone layouts 8547 | -4/Upper Caves | Discovered new exit (range 9) 8560 | -4/Upper Caves | Entered another Upper Caves area 8569 | -4/Upper Caves | Learned location of 2 exits from Research 8621 | -4/Upper Caves | Discovered new exit (range 14) 8627 | -4/Upper Caves | Entered Zhirov 8627 | -4/Zhirov | Discovered new exit (range 3) 8631 | -4/Zhirov | Met Zhirov 8637 | -4/Zhirov | Zhirov requested help retrieving the SGEMP Prototype 8640 | -4/Zhirov | Found Alien Artifact 8640 | -4/Zhirov | Identified Integrated Reactor 8640 | -4/Zhirov | Installed Integrated Reactor, increased core energy generation (+10) 8648 | -4/Zhirov | Found Alien Artifact 8677 | -4/Zhirov | Entered Proximity Caves 8702 | -3/Proximity Caves | Spotted B-86 Titan 8738 | -3/Proximity Caves | Discovered new exit (range 8) 8750 | -3/Proximity Caves | Entered Research 8750 | -3/Research | Evolved 2 slots: Propulsion x1, Utility x1 8751 | -3/Research | Identified exit to Research 8753 | -3/Research | Loaded intel: 99 machine locations 8764 | -3/Research | Identified exit to Quarantine 8839 | -3/Research | Entered Quarantine 8840 | -3/Quarantine | Loaded intel: 73 machine locations 8856 | -3/Quarantine | Found Alien Artifact 8886 | -3/Quarantine | Repaired Broken Adv. Cooling System 8894 | -3/Quarantine | Found Alien Artifact 8911 | -3/Quarantine | Found Alien Artifact 8922 | -3/Quarantine | Met incapacitated Sigix Warrior 8922 | -3/Quarantine | Lockdown squad dispatched 8922 | -3/Quarantine | Acquired the access code to the Sigix quarantine chamber 8922 | -3/Quarantine | Unlocked Sigix quarantine chamber 8930 | -3/Quarantine | Spotted Lightning 8930 | -3/Quarantine | Spotted Lightning 8930 | -3/Quarantine | Spotted Lightning 8933 | -3/Quarantine | Identified Dimensional Node Initializer 8933 | -3/Quarantine | Identified Transdimensional Reconstructor (x2) 8933 | -3/Quarantine | Identified Subatomic Replicator 8938 | -3/Quarantine | Entered Research 8938 | -2/Research | Warlord forces began assault on 0b10 8938 | -2/Research | Evolved 2 slots: Propulsion x1, Utility x1 8939 | -2/Research | Loaded intel: 84 machine locations 8961 | -2/Research | Found Gamma Bomb Array 8969 | -2/Research | Identified exit to Testing 9048 | -2/Research | Research machine network offline 9073 | -2/Research | Discovered new exit (range 4) 9132 | -2/Research | Met up with Warlord 9139 | -2/Research | Hacked God Mode, triggering a massive explosion 9142 | -2/Research | System corruption reached 10% 9142 | -2/Research | System corruption reached 30% 9167 | -2/Research | Entered Testing 9168 | -2/Testing | Loaded intel: 68 machine locations 9174 | -2/Testing | Found Prototype Energy Cannon 9174 | -2/Testing | Identified Cld. Nova Cannon 9188 | -2/Testing | Spotted Striker 9188 | -2/Testing | Spotted Striker 9188 | -2/Testing | Spotted PH-6439XAVKDL 9232 | -2/Testing | Discovered new exit (range 9) 9246 | -2/Testing | Spotted Superbehemoth 9255 | -2/Testing | Superbehemoth self-activated to run performance analysis 9259 | -2/Testing | Spotted PP-IVE34N2E9B 9275 | -2/Testing | Spotted Alpha 7 9299 | -2/Testing | Entered Access 9299 | -1/Access | Evolved 2 slots: Utility x2 9300 | -1/Access | Loaded intel: 118 machine locations 9359 | -1/Access | Discovered new exit (range 7) 9360 | -1/Access | Entered Command 9361 | -1/Command | Loaded intel: 56 machine locations 9369 | -1/Command | Spotted B-99 Colossus 9383 | -1/Command | Disengaged cave seal 9383 | -1/Command | Derelicts emerged from the dark tunnel 9383 | -1/Command | Welcomed Warlord to Command 9430 | -1/Command | Spotted B-99 Colossus 9454 | -1/Command | Disengaged cave seal 9454 | -1/Command | Derelicts emerged from the dark tunnel 9663 | -1/Command | Spotted M Guard 9681 | -1/Command | Spotted M Guard 9681 | -1/Command | Spotted Combat Programmer 9681 | -1/Command | Spotted Combat Programmer 9690 | -1/Command | Warlord commented on Warlord statues 9756 | -1/Command | Lost 13 parts (2p4n4u3w) 9782 | -1/Command | Destroyed 9 combat bots 9782 | -1/Command | Spotted Striker 9782 | -1/Command | Spotted Alpha 7 9784 | -1/Command | Spotted Executioner 9784 | -1/Command | Spotted Executioner 9784 | -1/Command | Spotted Executioner 9784 | -1/Command | Spotted Executioner 9784 | -1/Command | Spotted Striker 9797 | -1/Command | Found Com. Tesla Bomb Launcher 9815 | -1/Command | Spotted Alpha 7 9816 | -1/Command | Spotted B-99 Colossus 9820 | -1/Command | Spotted B-99 Colossus 9821 | -1/Command | Discovered new exit (range 9) 9825 | -1/Command | Core integrity fell below 50% 9825 | *** | Destroyed 0B10! Last Messages --------------- 09822_ Field strength at 90. 09822_ Field strength at 40. 09822_ Field strength at 80. 09822_ Slug penetrates Reinforced Barrier. 09822_ Penetrated by Slug. 09822_ Slug penetrates Wall. 09823_ Field strength at 10. 09823_ Field strength at 61. 09823_ Adv. Datajack destroyed. 09824_ Penetrated by Slug. 09824_ Slug penetrates Wall. 09824_ Stasis field depleted. 09824_ Slug penetrates Wall. 09825_ Field strength at 70. 09825_ Cld. Impulse Thruster destroyed. 09825_ Cmb. Linear Gravjet destroyed. 09825_ Com. Tesla Bomb Launcher destroyed. 09825_ Knocked back. 09825_ Penetrated by Slug. 09825_ Slug penetrates Wall. Map ----- +----------------------------------------------------+ | ?????# " """[ # #?????????????? | | #########"""" ############## ######?????????????? | | " % #???????????##??????????????????? | | % #??????????????????????????? ? | | " #??????????????????????????? # | | % #??????????????????????????? # | | #??????????????????????????? # | | % #??????????????????????????# # | | #??????????????????????????# # | | ###/#### #########??????????????????????????# # | | ?# # #??????????????????????????????????+ # | | ?# ###??????????????????????????????????# # | | ?# #????????????????????????????????????# # | | ?# #????????????????????????????????????# # | | ?# ###??????????????????????????????????# # | | ?# #????######????????????????????????# # | | ?# #???# #????????????????????????# # | | ?# #### #????######???##??????????# # | | ?# ######;;;;####;#??????????# # | | ## ## BB#########???# # | | "" ## BB;;;#;;;;####; # | | "" * ## ; ; ; ; # | | "T [ "### ^ ^ ! # | | "" *% ""#?# K !!! | | "" [ ""#?# "" ! | | ## ""#?# @" ^ ^ | | ?# = ""#?# ^ ^ K7 | | ?# ! T"#?# E E # # "# | | ?# #### # ""#?# ; # # # #### * | | ?# ???# + * ""#?# BB#########??# | | + ???# # ""#?# BB#??????????# "" | | + ???# # ""#?##############??????????# """ | | + ???# # "#?????????????????????????# = """ | | + ???# # #????????###########??????# "" | | ## #### # #????????# ! !#??????# | | ?# #########????????# ! ######## | | ?# #????????????????# ## ####### | | ?# #?????????######## ## ###?? | | ## !! #?????????# [## # # # # # ### | | # !! ########### | | # | | # | | # ###### [ | | ######## ###### #" # # ### | | ???????# # # # # | | ???????# # # # | | ???????# # # ! "" !## #| | | ???????# # """" ## # | | ??????? # "" # """" ## "" # ! | | ?????? # # "" "" ## """ # | +----------------------------------------------------+ Best States ------------- Heat Dissipation 161 Coolant Potential 80 Energy Generation 85 Energy Capacity 700 Matter Stores 300 Matter Capacity 300 Sight Range 24 Terrain Scan Density 10 Cloak Strength 5 Power Amplification 40 Armor Coverage 225 Evasion (%) 80 Recoil Reduction 3 Offensive Hacking 40 Item Schematics ----------------- Enh. Optical Array | -7/Factory | Scanalyzed Combat Drone Bay | -7/Data Miner | Free Lgt. Regenerative Plating | -7/Data Miner | Free Triangulator | -7/Data Miner | Free Exp. Terrain Scan Processor | -7/Data Miner | Free Exp. Targeting Computer | -7/Data Miner | Free Tactical Coordination Suite | -7/Data Miner | Free Exp. Transmission Jammer | -7/Data Miner | Free Cloaking Device | -7/Data Miner | Free Mni. Smartbomb Launcher | -7/Data Miner | Free Cld. VTOL Module | -6/Factory | Hacked Adv. Cooling System | -6/Extension | Hacked Hvy. Pick | -6/Extension | Hacked Mic. Fission Core | -6/Extension | Hacked Enh. Quantum Rifle | -4/Factory | Hacked Assault Drone Bay | -4/Zhirov | Free Exp. Heat Sink | -4/Zhirov | Free Exp. Optical Array | -4/Zhirov | Free Imp. Arc Thrower | -4/Zhirov | Free Lgt. Quantum Reactor | -2/Testing | Hacked Robot Schematics ------------------ S-27 Virus | -7/Data Miner | Free G-50 Soldier | -7/Data Miner | Free G-67 Veteran | -7/Data Miner | Free L-41 Fighter | -7/Data Miner | Free X-72 Disruptor | -7/Data Miner | Free H-66 Slayer | -7/Data Miner | Free I-36 Angel | -7/Data Miner | Free Fabricated ------------ Cld. VTOL Module | x1 | -6/Factory Cld. VTOL Module | x1 | -6/Factory Cld. VTOL Module | x1 | -5/Factory Cld. VTOL Module | x1 | -5/Factory Cld. VTOL Module | x1 | -5/Factory Cld. VTOL Module | x1 | -5/Factory Cld. VTOL Module | x1 | -5/Factory Cld. VTOL Module | x1 | -5/Factory Mni. Smartbomb Launcher | x1 | -5/Factory Exp. Transmission Jammer | x1 | -4/Factory Alien Tech Used ----------------- Integrated Reactor Achievements -------------- 404 Challenges ------------ None Game ------ Seed TractorDiametricNullifier Manual? 0 Play Time 02:20:39 Cumulative 244.1 hours Start 2021.10.19 @ 04:02:46 End 2021.10.19 @ 06:21:01 Sessions 1 Manual Loads 0 Difficulty Rogue Special Mode None Game No. 295 Rogue 295 Adventurer 0 Explorer 0 Win Type 3 Total 13 Types 9/0/2/2/0/0/0/0/0 Lore% 87 Gallery% 84 Achievement% 71 Wizard Run 0 Options --------- ASCII 0 Keyboard 0 Movement Arrows Keybinds 0 Fullscreen 1 Font 18/SmallcapsGlow Map View 76x50 Tactical HUD 1 Map Filters NONE Filters NONE Steam 1 RUN: dc62ebc2-d89c-4323-9a4b-0a19bbf8fee5